Cogmind - Beta 11 @@@ ROGUE MODE // 2022.04.06 @ 14:10:19 Player: pappous Result: Destroyed by 8R-AWN with 8R-AWN's Boregun Performance ------------- Evolutions (0) 0 Regions Visited (3) 600 Robots Destroyed (14) 70 Value Destroyed (232) 232 Prototype IDs (0) 0 Alien Tech Used (0) 0 Bonus (-249) -249 TOTAL SCORE: 653 Bonus ------- Follower Combat Kills 7 Friendly Fire -256 Cogmind --------- Core Integrity 0/250 Matter 164/300 Energy 250/250 System Corruption 0% Temperature Cool (30) Movement Treading (160) Location -10/Exiles Parts ------- > --- POWER (1) -------- Ion Engine > --- PROPULSION (2) --- Light Treads Light Treads > --- UTILITY (2) ------ Large Storage Unit Core Shielding > --- WEAPON (2) ------- Small Laser Light Cannon > --- INVENTORY (15) --- Ion Engine Light Treads Light Treads Light Treads Light Treads Wheel Heat Sink High-capacity Matter Pod (0) Weapon Shielding Medium Laser Assault Rifle Assault Rifle Rocket Launcher Peak State ------------ > --- POWER ------------ Ion Engine > --- PROPULSION ------- Light Treads Wheel > --- UTILITY ---------- Large Storage Unit Weapon Shielding > --- WEAPON ----------- Small Laser Light Assault Rifle > --- INVENTORY -------- Ion Engine Light Fission Core Light Treads Light Treads Light Treads Light Treads Heat Sink High-capacity Matter Pod Core Shielding Medium Laser Small Laser Assault Rifle Assault Rifle Light Cannon Rocket Launcher [Rating: 9] Favorites ----------- Power Ion Engine Engine Ion Engine Propulsion Light Treads Treads Light Treads Wheel Wheel Utility Large Storage Unit Storage Large Storage Unit Protection Weapon Shielding Weapon Assault Rifle Energy Gun Small Laser Ballistic Gun Assault Rifle Ballistic Cannon Light Cannon Launcher Rocket Launcher Build | -11 -10 -10 -10 ------- Run | Scr Mat Min Exi Slots Evolved . | . . . . Power . | . . . . Propulsion . | . . . . Utility . | . . . . Weapon . | . . . . Parts Attached 26 | 6 11 1 8 Power 3 | 1 2 . . Engine 3 | 1 2 . . Core . | . . . . Reactor . | . . . . Propulsion 8 | 2 3 . 3 Treads 5 | 1 2 . 2 Leg . | . . . . Wheel 3 | 1 1 . 1 Hover . | . . . . Flight . | . . . . Utility 5 | 1 3 . 1 Device . | . . . . Storage 2 | 1 1 . . Processor . | . . . . Hackware . | . . . . Protection 3 | . 2 . 1 Artifact . | . . . . Weapon 10 | 2 3 1 4 Energy Gun 2 | . . 1 1 Energy Cannon . | . . . . Ballistic Gun 6 | 2 3 . 1 Ballistic Cannon 1 | . . . 1 Launcher 1 | . . . 1 Special Weapon . | . . . . Impact Weapon . | . . . . Slashing Weapon . | . . . . Piercing Weapon . | . . . . Special Melee Weapon . | . . . . Unidentified Prototypes . | . . . . Parts Lost 4 | . 2 . 2 Power 1 | . 1 . . Propulsion 1 | . 1 . . Utility . | . . . . Weapon 2 | . . . 2 Highest Loss Streak 2 | . 1 . 2 To Critical Strikes 2 | . . . 2 Average Slot Usage (%) 96 | . 94 100 99 Engine 12 | . 12 14 14 Treads 20 | . 16 28 20 Wheel 7 | . 11 . 7 Storage 14 | . 14 14 14 Protection 11 | . 10 14 14 Energy Gun 3 | . . 5 14 Ballistic Gun 24 | . 28 22 10 Naked Turns . | . . . . Heaviest Build 31 | 12 29 29 31 Greatest Support 20 | 20 20 20 20 Greatest Overweight (x) 3 | . 2 1 3 Average Overweight (x) 1 | . . 1 2 Largest Inventory Capacity 15 | 8 15 15 15 Average Capacity 12 | 6 11 15 15 Most Carried 15 | 4 15 15 15 Average Carried 11 | 2 9 14 14 Final Capacity 15 | 8 15 15 15 Final Carried 15 | 4 15 15 13 Class Distribution -------------------- 100% | Mutant Dominant Class ---------------- Mutant | -10/Materials Mutant | -10/Mines Mutant | -10/Exiles Resources | -11 -10 -10 -10 ----------- Run | Scr Mat Min Exi Matter Collected 523 | 222 205 37 59 Remotely . | . . . . Salvage Created 347 | . 320 18 9 Parts 31 | . 29 2 . Haulers Intercepted . | . . . . Recyclers Shooed . | . . . . Parts Field Recycled . | . . . . Retrieved Matter . | . . . . Parts Self-Destructed . | . . . . Prevented . | . . . . Kills | -11 -10 -10 -10 ------- Run | Scr Mat Min Exi Combat Hostiles Destroyed 16 | . 12 1 3 Guns 14 | . 12 1 1 AOE 2 | . . . 2 Classes Destroyed 4 | . 3 . 1 Recycler 1 | . 1 . . Swarmer 9 | . 8 1 . Grunt 4 | . 4 . . Assembled 3 | . . . 3 Best Kill Streak 5 | . 5 1 3 Combat Bots Only 4 | . 4 1 3 Max Kills in Single Turn 3 | . 2 1 3 Gunslinging . | . . . . Exploded 2 | . . . 2 Melee . | . . . . Uniques/NPCs Destroyed . | . . . . Combat | -11 -10 -10 -10 -------- Run | Scr Mat Min Exi Damage Taken 1199 | . 516 63 620 Core 257 | . 113 . 144 Absorbed by Shields . | . . . . Redirected to Shielding 44 | . 4 4 36 Core Remaining (%) 100 | 100 . . . Volleys Fired 54 | . 33 2 19 Largest 2 | . 2 2 2 Hottest 75 | . 40 60 75 Shots Fired 105 | . 66 3 36 Gun 101 | . 66 3 32 Cannon 2 | . . . 2 Launcher 2 | . . . 2 Special . | . . . . Kinetic 83 | . 66 2 15 Thermal 20 | . . 1 19 Explosive 2 | . . . 2 Electromagnetic . | . . . . Robot Hit Streak 14 | . 14 2 11 Robot Miss Streak 5 | . 5 1 1 Penetration Max . | . . . . Secondary Targets 4 | . 3 1 . Max Gunslinging Chain 1 | . 1 1 . Shots Hit Robots 64 | . 33 2 29 Core Hits 28 | . 16 1 11 Critical Kills . | . . . . Critical Parts Destroyed . | . . . . Critical Strikes . | . . . . Melee Attacks . | . . . . Impact . | . . . . Slashing . | . . . . Piercing . | . . . . Sneak Attacks . | . . . . Combat Hostiles . | . . . . Follow-up Attacks . | . . . . Damage Inflicted 926 | . 389 17 520 Guns 536 | . 389 17 130 Cannons 17 | . . . 17 Explosions 373 | . . . 373 Melee . | . . . . Ramming . | . . . . Kinetic 507 | . 389 7 111 Thermal 46 | . . 10 36 Explosive 373 | . . . 373 Electromagnetic . | . . . . Impact . | . . . . Slashing . | . . . . Piercing . | . . . . Highest Corruption . | . . . . Average Corruption . | . . . . Corruption Purged . | . . . . Corruption Blocked . | . . . . Overload Shots . | . . . . Overflow Damage 11 | . . . 11 Projectiles . | . . . . Explosions 11 | . . . 11 Melee . | . . . . Knockbacks 1 | . . . 1 Impact . | . . . . Kinetic 1 | . . . 1 Secondary . | . . . . Self-Inflicted Damage . | . . . . Shots . | . . . . Rammed . | . . . . Targets Rammed . | . . . . Kicked . | . . . . Crushed . | . . . . Highest Temperature 60 | . 12 20 60 Average Temperature 21 | . 7 15 24 Received Heat Transfer 78 | . 72 . 6 Siege Activations . | . . . . Robots Corrupted . | . . . . Combat Hostiles . | . . . . Parts Fried . | . . . . Impact Corruptions . | . . . . Robots Melted . | . . . . Combat Hostiles . | . . . . Parts Melted . | . . . . Heat Transferred 165 | . . 25 140 Parts Sabotaged . | . . . . Parts Stolen . | . . . . Parts Stripped . | . . . . Power Chain Reactions . | . . . . Missiles Intercepted . | . . . . Alert | -11 -10 -10 -10 ------- Run | Scr Mat Min Exi Peak Influence 273 | . 273 54 . Initial 8 | . . 8 . Average 72 | . 110 7 . Maximum Alert Level 1 | . 1 . . Low Security (%) 87 | 100 80 100 . Level 1 12 | . 19 . . Level 2 . | . . . . Level 3 . | . . . . Level 4 . | . . . . Level 5 . | . . . . High Security . | . . . . Max Security . | . . . . Squads Dispatched 3 | . 3 . . Investigation 1 | . 1 . . Extermination . | . . . . Reinforcement 2 | . 2 . . Assault . | . . . . Garrison . | . . . . Intercept . | . . . . Searches Triggered . | . . . . Construction Impeded . | . . . . Haulers Reinforced . | . . . . Active Scanning Responses . | . . . . Cargo Convoy Interrupts . | . . . . Stealth | -11 -10 -10 -10 --------- Run | Scr Mat Min Exi Distress Signals 2 | . 2 . . Communications Jammed . | . . . . Distress Signals . | . . . . Times Spotted 32 | . 22 2 8 Peak Tracking Total 8 | . 7 3 8 Tactical Retreats 1 | . 1 . . Traps | -11 -10 -10 -10 ------- Run | Scr Mat Min Exi Traps Triggered 1 | . 1 . . Indirectly . | . . . . Trap Hack Attempts . | . . . . Triggered . | . . . . Disarmed . | . . . . Reprogrammed . | . . . . Reused . | . . . . Traps Extracted . | . . . . Installed . | . . . . Triggered . | . . . . Machines | -11 -10 -10 -10 ---------- Run | Scr Mat Min Exi Machines Disabled 2 | . . . 2 Max in Single Turn 1 | . . . 1 Machines Sabotaged . | . . . . Garrisons Compromised . | . . . . Overloaded Fab Kills . | . . . . Hacking | -11 -10 -10 -10 --------- Run | Scr Mat Min Exi Machines Accessed 2 | . 2 . . Terminals 2 | . 2 . . Fabricators . | . . . . Repair Stations . | . . . . Recycling Units . | . . . . Scanalyzers . | . . . . Garrison Access . | . . . . Total Hacks 4 | . 4 . . Successful 1 | . 1 . . Failed 3 | . 3 . . Catastrophic 1 | . 1 . . Database Lockouts . | . . . . Manual 3 | . 3 . . Terminals 4 | . 4 . . Fabricators . | . . . . Repair Stations . | . . . . Recycling Units . | . . . . Scanalyzers . | . . . . Garrison Access . | . . . . Terminal Hacks 1 | . 1 . . Branch Access Points 1 | . 1 . . Fabricator Hacks . | . . . . Repair Station Hacks . | . . . . Recycling Unit Hacks . | . . . . Scanalyzer . | . . . . Garrison Access Hacks . | . . . . Unauthorized Hacks . | . . . . Terminals . | . . . . Fabricators . | . . . . Repair Stations . | . . . . Recycling Units . | . . . . Scanalyzers . | . . . . Garrison Access . | . . . . Data Cores Recovered . | . . . . Used . | . . . . Hacking Detections 1 | . 1 . . Full Trace Events . | . . . . Feedback Events . | . . . . Feedback Blocked . | . . . . Robot Schematics Acquired . | . . . . Robots Built . | . . . . Authchips . | . . . . Time . | . . . . Total Robot Build Rating . | . . . . Part Schematics Acquired . | . . . . Parts Built . | . . . . Authchips . | . . . . Time . | . . . . Total Part Build Rating . | . . . . Parts Repaired . | . . . . Time . | . . . . Parts Recycled . | . . . . Recycled Matter . | . . . . Retrieved Matter . | . . . . Retrieved Components . | . . . . Parts Scanalyzed . | . . . . Part Schematics Acquired . | . . . . Parts Damaged . | . . . . Bothacking | -11 -10 -10 -10 ------------ Run | Scr Mat Min Exi Used RIF Installer . | . . . . Robots Hacked . | . . . . Non-combat . | . . . . Combat . | . . . . Robot Hacks Applied . | . . . . Relay Couplers Released . | . . . . Fabnet Peak Effective % . | . . . . Robots Rewired . | . . . . Allies Hacked . | . . . . Hacks Repelled . | . . . . Allies | -11 -10 -10 -10 -------- Run | Scr Mat Min Exi Total Allies 3 | . . 3 . Largest Group 3 | . . 3 3 Highest-Rated Group 40 | . . 40 40 Highest-Rated Ally 16 | . . 16 16 Total Orders 3 | . . . 3 STAY 2 | . . . 2 FOLLOW 1 | . . . 1 Ally Attacks 20 | . . 5 15 Total Damage 195 | . . 30 165 Kills 5 | . . 1 4 Allies Corrupted . | . . . . Allies Melted . | . . . . Intel | -11 -10 -10 -10 ------- Run | Scr Mat Min Exi Robot Analysis Total . | . . . . Derelict Logs Recovered 1 | . . 1 . Drone Launches . | . . . . Drone Recoveries . | . . . . Exploration | -11 -10 -10 -10 ------------- Run | Scr Mat Min Exi Turns Passed 1946 | 86 1079 543 238 Spaces Moved 1004 | 49 616 216 123 Core 1 | 1 . . . Treads 562 | 44 284 216 18 Legs . | . . . . Wheels 441 | 4 332 . 105 Hover . | . . . . Flight . | . . . . Fastest Speed 50 | 50 95 240 110 Average Speed 166 | 151 149 240 133 Slowest Speed 240 | 160 240 240 240 Overloaded Moves . | . . . . Propulsion Burnouts . | . . . . Robots Hopped . | . . . . Cave-ins Triggered . | . . . . Exploration Rate (%) 41 | 5 90 49 21 Regions Visited 3 Branch Regions 2 Pre-discovered Areas 1 | . . 1 . Known Exits Taken 1 | . 1 . . Unknown Exits Taken 2 | 1 . 1 . Scrap Searched 1 | . . 1 . Spaces Dug . | . . . . Terrain Destroyed 13 | . . . 13 Melee . | . . . . Projectile . | . . . . AOE 13 | . . . 13 Terrain Rammed . | . . . . Walls Destroyed . | . . . . Machines Disabled . | . . . . Actions | -11 -10 -10 -10 --------- Run | Scr Mat Min Exi Total 1176 | 58 717 239 162 Wait 51 | . 28 19 4 Move 1001 | 48 615 215 123 Hop . | . . . . Pick Up 28 | 4 19 1 4 Fast Attach 6 | 6 . . . Attach 6 | . 4 . 2 Detach . | . . . . Swap 14 | . 7 1 6 Drop 16 | . 11 1 4 Fire 54 | . 33 2 19 Melee . | . . . . Ram . | . . . . Kick . | . . . . Crush . | . . . . Escape Stasis . | . . . . Rewire . | . . . . Trap . | . . . . Miscellaneous . | . . . . Route ------- -11/Scrapyard -10/Materials (discovered 5 exits: [*Mat x3] / *Min x2) -10/Mines (discovered 3 exits: [*Mat x2] / [*Exi]) -10/Exiles (discovered 1 exit: [*Min]) History --------- Turn | Location | Event 2 | -11/Scrapyard | Met Revision 17 23 | -11/Scrapyard | Discovered new exit (range 15) 87 | -11/Scrapyard | Entered Materials 291 | -10/Materials | Discovered new exit (range 13) 303 | -10/Materials | Build established: Mutant 416 | -10/Materials | Discovered new exit (range 16) 523 | -10/Materials | Discovered new exit (range 3) 608 | -10/Materials | Discovered new exit (range 16) 860 | -10/Materials | Discovered new exit (range 4) 956 | -10/Materials | Identified exit to Mines 1166 | -10/Materials | Entered Mines 1171 | -10/Mines | Met a Derelict bent on vengeance 1254 | -10/Mines | Discovered new exit (range 8) 1278 | -10/Mines | Assisted by bots powering up and referring to "LRC-V3" 1326 | -10/Mines | Learned location of Zion (-6) 1365 | -10/Mines | Discovered new exit (range 12) 1480 | -10/Mines | Received a Rocket Launcher from a helpful Derelict 1694 | -10/Mines | Deemed a non-threat by the Exiles lab entrance 1694 | -10/Mines | Discovered new exit (range 5) 1709 | -10/Mines | Entered Exiles 1709 | -10/Exiles | Accompanied by 3 allies 1757 | -10/Exiles | Discovered new exit (range 15) 1849 | -10/Exiles | Met 8R-AWN 1868 | -10/Exiles | Met EX-HEX 1881 | -10/Exiles | Attacked by the Exiles 1882 | -10/Exiles | Core integrity fell below 50% 1917 | -10/Exiles | Core integrity fell below 20% 1947 | -10/Exiles | Destroyed by 8R-AWN with 8R-AWN's Boregun Last Messages --------------- 01896_ Penetrated by HV Slug. 01896_ HV Slug penetrates Assembled Analyzer. 01896_ Assembled Analyzer disabled. 01896_ Penetrated by HV Slug. 01896_ HV Slug penetrates Assembled Analyzer. 01896_ Machine disabled. 01898_ HV Slug penetrates Wall. 01898_ Penetrated by HV Slug. 01928_ HV Slug penetrates Wall. 01928_ Penetrated by HV Slug. 01934_ Critical hit (Destroy). 01934_ Lgt. Assault Rifle destroyed. 01939_ Penetrated by HV Slug. 01939_ Critical hit (Destroy). 01939_ Sml. Laser destroyed. 01941_ 8R-AWN knocked back. 01943_ Penetrated by HV Slug. 01943_ HV Slug penetrates Wall. 01947_ Wall collapses. 01947_ Penetrated by HV Slug. Map ----- +----------------------------------------------------+ | ?????????????????????????????????????????????????? | | ?????????????????????????????????????????????????? | | ?????????????????????????????????????????????????? | | ?????????????????????????????????????????????????? | | ?????????????????????????????????????????????????? | | ?????????????????????????????????????????????????? | | ?????????????????????????????????????????????????? | | ?????????????????????????????????????????????????? | | ?????????????????????????????????????????????????? | | ?????????????????????????????????????????????????? | | ?????????????????????????????????????????????????? | | ?????????????????????????????????????????????????? | | ?????????????????????????????????????????????????? | | ?????????????##??????????????????????????????????? | | ????????????"" """"#?????????????????????????????? | | ???????? "?""" """"?????????????????????????????? | | ???????? "" " #???????????????????????????? | | ??????? " """#???????????????????????????? | | ??????? a"#???????????#####???????????? | | ??????? " "##?????????##" #???????????? | | ?????? "###???????#" #???????????? | | ?????? ""#??????##" ##??????????? | | ????? "#????### ###????????# | | ??????" ##???# ########## | | ??????"" [% ##### #""""## | | ???????"" =%*!@;## | | ??????" *== ## | | ??????"" % g #### | | ?????? ""#?#"""""#### | | ??????? #"""##?#######??#### | | ??????? % ######??????????????### | | ??????? ##?????????????????????? | | ???????? " ##??????????????????????? | | ???????? """ "#???????????????????????? | | ?????????" ""#" "##???????????????????????? | | ?????????" ???## #????????????????????????? | | ???????????????# ?????????????????????????? | | ???????????????### # #?????????????????????????? | | ?????????????????######??????????????????????????? | | ?????????????????????????????????????????????????? | | ?????????????????????????????????????????????????? | | ?????????????????????????????????????????????????? | | ?????????????????????????????????????????????????? | | ?????????????????????????????????????????????????? | | ?????????????????????????????????????????????????? | | ?????????????????????????????????????????????????? | | ?????????????????????????????????????????????????? | | ?????????????????????????????????????????????????? | | ?????????????????????????????????????????????????? | | ?????????????????????????????????????????????????? | +----------------------------------------------------+ Best States ------------- Heat Dissipation 25 Energy Generation 10 Energy Capacity 250 Matter Stores 288 Matter Capacity 300 Sight Range 16 Terrain Scan Density 10 Core Shielding 20 Weapon Shielding 33 Evasion (%) 41 Recoil Reduction 2 Item Schematics ----------------- None Robot Schematics ------------------ None Fabricated ------------ Nothing Alien Tech Used ----------------- None Achievements -------------- None Challenges ------------ None Game ------ Seed CryofiberMasterTreads Manual? 0 Play Time 00:17:16 Cumulative 63.8 hours Start 2022.04.06 @ 13:31:42 End 2022.04.06 @ 14:10:19 Sessions 1 Manual Loads 0 Difficulty Rogue Special Mode None Game No. 89 Rogue 89 Adventurer 0 Explorer 0 Win Type - Total 1 Types 1/0/0/0/0/0/0/0/0 Lore% 49 Gallery% 49 Achievement% 41 Wizard Run 0 Options --------- ASCII 0 Keyboard 0 Movement Mouse Keybinds 0 Fullscreen 1 Font 14/SmallcapsLarge Map View 72x54 Tactical HUD 1 Map Filters NONE Filters NONE Steam 1 RUN: b66ec857-03b9-4548-b47d-213a1976117f